bitfinex/quotes_SOLUSD_20260311
["timestamp","ask_amount","ask_price","bid_price","bid_amount"]
[1773238206909,4.35583935,86.159,86.13,7.54878182]
[1773238207212,11.60440258,86.175,86.141,4.37197922]
[1773238207382,7.19636764,86.176,86.15,7.54878182]
[1773238207589,4.35583935,86.169,86.131,4.37197922]
[1773238207894,4.35583935,86.175,86.14,7.54878182]
[1773238208095,18.80061002,86.176,86.141,4.37197922]
[1773238208413,11.60429358,86.175,86.141,4.37197922]
[1773238208785,7.54878182,86.17,86.141,4.37197922]
[1773238209011,7.54878182,86.17,86.14,7.54878182]
[1773238209203,7.19636764,86.176,86.14,7.54878182]
[1773238209394,7.54878182,86.17,86.14,7.54878182]
[1773238210209,4.35583935,86.149,86.11,7.54878182]
[1773238210388,4.35583935,86.149,86.111,4.37197922]
[1773238210595,7.54878182,86.14,86.11,7.54878182]
[1773238210896,4.35583935,86.139,86.11,7.54878182]
[1773238211703,7.54878182,86.13,86.101,4.37197922]
[1773238212120,7.54878182,86.13,86.089,4.37197922]
[1773238212308,7.54878182,86.12,86.09,7.54878182]
[1773238212499,46.42579136,86.16,86.064,3.69383402]
[1773238212500,4.35583935,86.139,86.1,7.54878182]
[1773238212701,11.60927813,86.138,86.101,4.37197922]
[1773238212900,1.26119341,86.158,86.121,4.37197922]
[1773238213223,1.26119341,86.158,86.089,3.69383402]
[1773238213224,1.26119341,86.158,86.131,4.37197922]
[1773238213896,4.35583935,86.157,86.121,4.37197922]
[1773238214305,7.54878182,86.15,86.122,11.61143494]
[1773238215402,11.60671796,86.157,86.123,4.37197922]
[1773238215598,40.62351288,86.157,86.123,4.37197922]
[1773238215802,7.54878182,86.15,86.122,11.61143494]
[1773238216206,4.35583935,86.149,86.113,11.61264849]
[1773238216405,4.35583935,86.139,86.097,4.37197922]
[1773238216606,4.35583935,86.139,86.1,7.54878182]
[1773238216802,4.35583935,86.139,86.1,11.92076104]
[1773238217103,7.54878182,86.14,86.11,11.92076104]
[1773238217418,2.8,86.145,86.111,4.37197922]
[1773238217613,7.54878182,86.15,86.098,98.72470904]
[1773238217614,11.60671796,86.157,86.121,4.37197922]
[1773238217917,1.26119341,86.158,86.13,7.54878182]
[1773238218116,1.26119341,86.158,86.14,7.54878182]
[1773238218309,1.26119341,86.158,86.141,4.37197922]
[1773238218517,1.26119341,86.158,86.133,4.37197922]
[1773238218718,1.26119341,86.158,86.141,4.37197922]
[1773238218915,11.60385389,86.179,86.15,7.54878182]
[1773238219118,11.60385389,86.179,86.151,4.37197922]
[1773238220206,11.60385389,86.179,86.14,11.95817423]
[1773238220614,4.22963796,86.178,86.141,11.60887382]
[1773238220810,4.22963796,86.169,86.141,11.60887382]
[1773238221012,11.77841978,86.15,86.113,4.40939241]
[1773238221220,7.54878182,86.13,86.09,11.95817423]
[1773238221513,7.54878182,86.13,86.091,4.40939241]
[1773238222022,7.54878182,86.12,86.093,11.61534619]
[1773238222412,7.54878182,86.12,86.08,7.54878182]
[1773238222720,11.61183943,86.119,86.081,11.61696541]
[1773238223437,11.61183943,86.119,86.082,4.40939241]
[1773238223630,7.54878182,86.12,86.09,7.54878182]
[1773238224010,7.54878182,86.12,86.082,4.40939241]
[1773238224011,4.22963796,86.119,86.082,4.40939241]
[1773238224224,7.54878182,86.11,86.081,11.61696541]
[1773238225029,11.61318793,86.109,86.073,4.40939241]
[1773238226440,7.13946779,86.139,86.09,7.54878182]
[1773238226441,4.22963796,86.126,86.09,7.54878182]
[1773238226730,7.54878182,86.12,86.091,4.40939241]
[1773238227035,7.13946779,86.139,86.101,4.40939241]
[1773238227241,7.54878182,86.15,86.121,4.40939241]
[1773238227411,7.54878182,86.15,86.092,98.73158945]
[1773238227412,7.1347224,86.169,86.131,4.40939241]
[1773238227611,11.60523628,86.168,86.131,4.40939241]
[1773238227813,18.73983767,86.169,86.14,7.54878182]
[1773238228113,18.73983767,86.169,86.131,4.40939241]
[1773238228415,18.73983767,86.169,86.13,7.54878182]
[1773238228416,7.54878182,86.16,86.13,7.54878182]
[1773238228614,7.54878182,86.16,86.12,7.54878182]
[1773238228838,7.54878182,86.16,86.13,7.54878182]
[1773238229039,7.54878182,86.15,86.122,11.61143494]
[1773238229235,4.22963796,86.158,86.123,4.40939241]
[1773238229628,7.54878182,86.15,86.122,11.61143494]
[1773238229825,4.22963796,86.158,86.122,11.61143494]
[1773238230035,11.60644854,86.159,86.13,7.54878182]
[1773238230233,7.54878182,86.15,86.118,11.61193816]
[1773238230744,7.54878182,86.15,86.12,7.54878182]
[1773238230915,11.60779579,86.149,86.116,4.40939241]
[1773238231238,11.60779579,86.149,86.073,92.94379328]
[1773238231239,4.22963796,86.129,86.091,4.40939241]
[1773238231420,7.54878182,86.12,86.091,4.40939241]
[1773238231618,4.22963796,86.129,86.091,4.40939241]
[1773238232333,7.54878182,86.13,86.1,7.54878182]
[1773238232538,7.54878182,86.13,86.091,4.40939241]
[1773238232713,2.8,86.148,86.121,4.40939241]
[1773238232913,2.8,86.148,86.079,3.69383402]
[1773238232914,7.54878182,86.14,86.108,4.40939241]
[1773238233120,0.74599999,86.151,86.079,3.69383402]
[1773238233121,0.74599999,86.151,86.121,4.40939241]
[1773238233321,12.35362332,86.151,86.121,4.40939241]
[1773238234437,7.54878182,86.15,86.111,4.40939241]
[1773238235230,11.60779579,86.149,86.112,11.61278335]
[1773238235543,11.60779579,86.149,86.113,4.40939241]
[1773238236040,0.74599999,86.151,86.13,7.54878182]
[1773238236224,12.35362791,86.151,86.121,4.40939241]
[1773238236425,12.35362791,86.151,86.12,7.54878182]
[1773238236426,7.54878182,86.14,86.11,11.95817423]
[1773238236635,4.22963796,86.149,86.111,11.61291821]
[1773238236842,4.22963796,86.149,86.112,4.40939241]
[1773238237019,12.35362791,86.151,86.121,4.40939241]
[1773238237216,7.54878182,86.15,86.111,45.05460614]
[1773238237437,11.60779579,86.149,86.112,4.40939241]
[1773238237920,40.62728527,86.149,86.112,16.02217576]
[1773238238147,4.22963796,86.148,86.112,16.02217576]
[1773238239045,7.54878182,86.14,86.112,16.02217576]
[1773238239546,7.54878182,86.12,86.081,4.40939241]
[1773238240123,7.54878182,86.12,86.09,7.54878182]
[1773238240425,4.35583935,86.109,86.071,11.61831511]
[1773238240623,4.35583935,86.109,86.072,4.48684503]
[1773238240840,7.54878182,86.1,86.072,4.48684503]
[1773238241045,7.54878182,86.09,86.06,12.13562685]
[1773238241559,4.35583935,86.1,86.07,7.54878182]
[1773238241560,7.54878182,86.1,86.07,7.54878182]
[1773238241855,4.35583935,86.099,86.061,16.10651015]
[1773238242038,7.54878182,86.07,86.042,11.62216718]
[1773238242223,2.8,86.098,86.019,29.06303609]
[1773238242224,7.54878182,86.06,86.019,29.06303609]
[1773238242426,7.54878182,86.06,86.03,4.48684503]
[1773238242652,7.54878182,86.07,86.033,11.62344538]
[1773238242831,7.54878182,86.06,86.033,11.62344538]
[1773238243036,4.35583935,86.049,86.001,4.48684503]
[1773238243353,19.17274345,86.03,85.991,11.62912397]
[1773238243557,7.54878182,86.01,85.99,0.1]
[1773238243864,7.54878182,86.01,85.99,0.01244322]
[1773238244061,7.54878182,86.02,85.991,4.48684503]
[1773238244238,7.54878182,86.02,85.99,0.01244322]
[1773238244442,4.26915814,85.999,85.955,4.48684503]
[1773238244651,190.51859952,86.03,85.93,11.63727147]
[1773238244652,7.54878182,85.97,85.93,11.63727147]
[1773238244944,7.54878182,85.97,85.93,7.54878182]
[1773238245140,7.54878182,85.98,85.951,4.48684503]
[1773238245341,11.63209994,85.969,85.93,7.54878182]
[1773238245557,7.54878182,85.96,85.928,4.48684503]
[1773238245762,7.54878182,85.95,85.92,7.54878182]
[1773238245934,4.26915814,85.967,85.921,4.48684503]
[1773238246351,7.54878182,85.96,85.931,4.48684503]
[1773238246636,7.54878182,85.95,85.92,12.03562685]
[1773238246840,2.8,85.967,85.931,4.48684503]
[1773238247039,11.62966494,85.987,85.95,7.54878182]
[1773238247355,11.62966494,85.987,85.951,4.48684503]
[1773238247560,7.54878182,85.99,85.96,7.54878182]
[1773238247752,11.62939445,85.989,85.96,7.54878182]
[1773238247954,7.54878182,85.99,85.96,7.54878182]
[1773238248166,7.54878182,85.98,85.953,4.48684503]
[1773238248342,7.54878182,85.98,85.946,4.48684503]
[1773238248663,4.22646655,85.988,85.94,7.54878182]
[1773238248858,7.54878182,85.97,85.94,7.54878182]
[1773238249059,7.54878182,85.97,85.934,11.63683757]
[1773238249258,7.54878182,85.96,85.934,11.63683757]
[1773238249666,29.07314804,85.99,85.951,4.39860251]
[1773238249667,7.54878182,85.99,85.951,4.39860251]
[1773238249963,7.54878182,85.99,85.934,11.63683757]
[1773238249964,11.62682392,86.009,85.971,4.39860251]
[1773238250264,7.54878182,85.99,85.96,7.54878182]
[1773238250641,7.54878182,86.0,85.96,7.54878182]
[1773238250966,7.54878182,85.99,85.955,4.39860251]
[1773238251145,7.54878182,85.99,85.96,7.54878182]
[1773238251344,7.54878182,86.0,85.96,7.54878182]
[1773238251773,7.54878182,85.99,85.961,16.03178499]
[1773238252069,7.54878182,85.98,85.944,4.39860251]
[1773238252250,40.69771306,86.0,85.932,4.39860251]
[1773238252251,7.54878182,85.97,85.932,4.39860251]
[1773238252444,7.54878182,85.96,85.932,4.39860251]
[1773238252761,11.77524837,85.95,85.923,11.6382285]
[1773238253060,4.22646655,85.949,85.923,11.6382285]
[1773238253257,7.54878182,85.95,85.923,11.6382285]
[1773238253454,7.54878182,85.95,85.921,4.39860251]
[1773238254040,7.54878182,85.94,85.91,7.64878182]
[1773238254253,46.52235583,85.981,85.91,7.64878182]
[1773238254254,4.22646655,85.991,85.931,4.39860251]
[1773238254468,7.54878182,85.95,85.915,11.63930308]
[1773238255167,7.54878182,85.94,85.91,19.28886607]
[1773238255666,4.22646655,85.949,85.91,45.23890792]
[1773238255841,11.63616053,85.939,85.91,11.74008425]
[1773238256042,7.54878182,85.95,85.911,4.39860251]
[1773238256250,2.8,85.954,85.931,4.39860251]
[1773238256654,7.54878182,85.95,85.916,4.39860251]
[1773238256855,4.82477569,85.982,85.931,4.39860251]
[1773238256856,7.54878182,85.97,85.931,4.39860251]
[1773238257051,7.54878182,85.96,85.931,4.39860251]
[1773238257368,7.54878182,85.96,85.885,11.64347674]
[1773238257369,4.22646655,85.939,85.885,11.64347674]
[1773238257574,7.54878182,85.91,85.885,40.75216859]
[1773238257771,3.69383402,85.956,85.885,11.64347674]
[1773238257772,4.22646655,85.923,85.885,11.64347674]
[1773238257961,7.54878182,85.91,85.88,7.54878182]
[1773238258158,7.54878182,85.9,85.874,4.39860251]
[1773238258360,7.54878182,85.89,85.871,11.64537503]
[1773238258561,7.54878182,85.9,85.871,11.64537503]
[1773238258760,44.96725039,85.909,85.871,11.64537503]
[1773238258962,15.8666905,85.909,85.871,11.64537503]
[1773238259174,7.54878182,85.91,85.881,4.39860251]
[1773238259471,4.22646655,85.949,85.901,4.39860251]
[1773238259681,4.22646655,85.969,85.911,4.39860251]
[1773238259853,7.58674522,85.94,85.9,7.58674522]
[1773238260054,4.82477569,85.964,85.897,4.39860251]
[1773238260055,11.63751469,85.929,85.898,11.64171459]
[1773238260250,11.63751469,85.929,85.898,40.74600106]
[1773238260575,11.63751469,85.929,85.9,7.58674522]
[1773238260771,11.63751469,85.929,85.898,40.74600106]
[1773238260772,7.58674522,85.95,85.911,4.39860251]
[1773238260974,11.63480668,85.949,85.92,7.58674522]
[1773238261154,4.22646655,85.957,85.92,7.58674522]
[1773238261359,11.63247883,85.967,85.93,11.98534773]
[1773238261767,11.63172764,85.972,85.94,7.58674522]
[1773238262073,11.63172764,85.972,85.898,192.08829073]
[1773238262074,11.63074704,85.979,85.95,7.58674522]
[1773238262374,7.58674522,85.97,85.93,11.98534773]
[1773238262552,7.62477569,85.992,85.95,7.58674522]
[1773238262553,7.58674522,85.99,85.95,7.58674522]
[1773238262881,7.58674522,85.98,85.95,7.58674522]
[1773238263068,11.81321177,85.99,85.95,7.58674522]
[1773238263259,7.58674522,85.98,85.95,7.58674522]
[1773238264090,11.63074704,85.979,85.94,11.98534773]
[1773238264461,11.63074704,85.979,85.95,7.58674522]
[1773238265263,11.63074704,85.979,85.942,4.39860251]
[1773238265462,7.58674522,85.97,85.94,7.58674522]
[1773238265868,7.58674522,85.97,85.917,2.74]
[1773238265869,4.18420188,85.949,85.879,4.39860251]
[1773238266082,7.58674522,85.91,85.88,40.75454121]
[1773238266284,7.58674522,85.9,85.87,0.1]
[1773238266478,7.58674522,85.9,85.871,11.64537503]
[1773238266679,7.58674522,85.9,85.87,0.1]
[1773238266997,7.58674522,85.9,85.871,11.64537503]
[1773238267173,4.18420188,85.897,85.87,0.1]
[1773238267484,7.58674522,85.9,85.87,11.74550189]
[1773238267667,40.74078384,85.909,85.85,0.1]
[1773238267668,4.18420188,85.879,85.85,0.1]
[1773238267982,133.8625755,85.909,85.86,11.98534773]
[1773238267983,4.14235986,85.9,85.86,11.98534773]
[1773238268167,11.64022395,85.909,85.87,7.58674522]
[1773238268368,7.58674522,85.9,85.863,4.39860251]
[1773238269388,7.58674522,85.89,85.852,4.39860251]
[1773238269577,4.14235986,85.889,85.851,16.04669047]
[1773238270069,4.14235986,85.889,85.85,7.68674522]
[1773238270070,7.58674522,85.87,85.85,0.1]
[1773238270273,7.58674522,85.86,85.83,7.58674522]
[1773238270580,7.58674522,85.85,85.816,11.65280081]
[1773238270786,7.58674522,85.86,85.821,4.39860251]
[1773238270961,7.58674522,85.87,85.831,4.39860251]
[1773238271378,7.58674522,85.89,85.851,4.39860251]
[1773238271581,11.64293448,85.889,85.86,7.58674522]
[1773238271782,7.58674522,85.88,85.84,7.58674522]
[1773238271990,4.14235986,85.884,85.83,7.58674522]
[1773238271991,7.58674522,85.87,85.83,7.58674522]
[1773238272284,7.58674522,85.86,85.83,11.6509379]
[1773238272494,7.58674522,85.86,85.821,4.39860251]
[1773238272673,11.64564627,85.869,85.831,4.39860251]
[1773238272990,11.64509065,85.874,85.841,4.39860251]
[1773238273294,7.58674522,85.9,85.861,4.39860251]
[1773238273477,7.58674522,85.93,85.89,7.58674522]
[1773238273679,7.58674522,85.93,85.891,4.39860251]
[1773238273874,7.58674522,85.93,85.862,2.74]
[1773238273875,2.8,85.944,85.91,7.58674522]
[1773238274093,7.58674522,85.94,85.9,4.39860251]
[1773238274399,7.58674522,85.91,85.876,4.39860251]
[1773238274573,7.58674522,85.92,85.881,4.39860251]
[1773238274773,40.73130142,85.929,85.848,2.74]
[1773238274774,7.58674522,85.91,85.87,7.58674522]
[1773238275072,4.14235986,85.919,85.871,4.39860251]
[1773238275272,4.14235986,85.919,85.88,11.98534773]
[1773238275466,7.58674522,85.91,85.881,4.39860251]
[1773238275670,7.58674522,85.91,85.871,4.39860251]
[1773238275873,7.58674522,85.92,85.881,4.39860251]
[1773238276203,7.58674522,85.9,85.868,4.39860251]
[1773238276369,7.58674522,85.9,85.86,7.58674522]
[1773238276570,4.14235986,85.921,85.869,4.39860251]
[1773238276788,4.14235986,85.921,85.86,11.64676194]
[1773238276789,7.58674522,85.9,85.861,4.39860251]
[1773238276989,4.14235986,85.909,85.86,19.23350716]
[1773238276990,7.58674522,85.92,85.881,4.39860251]
[1773238277306,7.58674522,85.92,85.86,40.76392942]
[1773238277307,7.58674522,85.93,85.89,4.39860251]
[1773238277598,7.58674522,85.92,85.877,4.39860251]
[1773238277896,7.58674522,85.91,85.87,7.58674522]
[1773238278486,7.58674522,85.9,85.861,4.39860251]
[1773238278692,7.58674522,85.88,85.849,4.39860251]
[1773238278892,7.58674522,85.89,85.85,19.23496886]
[1773238279285,4.14235986,85.938,85.88,7.58674522]
[1773238279579,4.14235986,85.889,85.835,4.39860251]
[1773238279781,4.14235986,85.869,85.81,4.17214495]
[1773238279982,4.82477569,85.909,85.789,2.74]
[1773238279983,4.14235986,85.872,85.811,4.17214495]
[1773238280180,4.14235986,85.872,85.793,29.13960254]
[1773238280181,7.58674522,85.86,85.821,4.17214495]
[1773238280513,7.58674522,85.85,85.81,7.58674522]
[1773238280809,7.58674522,85.85,85.812,4.17214495]
[1773238281018,7.58674522,85.85,85.811,11.65351761]
[1773238281229,4.14235986,85.857,85.812,4.17214495]
[1773238281394,11.64700264,85.859,85.821,4.17214495]
[1773238282098,40.76450924,85.859,85.821,4.17214495]
[1773238282412,11.64700264,85.859,85.821,4.17214495]
[1773238282712,11.64700264,85.859,85.822,11.65202395]
[1773238282898,11.64700264,85.859,85.823,4.17214495]
[1773238283528,11.64700264,85.859,85.801,4.17214495]
[1773238283529,7.58674522,85.84,85.801,4.17214495]
[1773238283692,7.58674522,85.85,85.811,4.17214495]
[1773238283888,2.8,85.858,85.82,7.58674522]
[1773238284104,46.56209586,85.907,85.831,4.17214495]
[1773238284105,11.6457529,85.869,85.831,4.17214495]
[1773238284301,7.58674522,85.86,85.831,4.17214495]
[1773238284911,11.64429022,85.879,85.841,4.17214495]
[1773238285095,7.58674522,85.9,85.86,7.58674522]
[1773238285415,11.64157906,85.899,85.861,4.17214495]
[1773238285607,40.74552671,85.899,85.861,4.17214495]
[1773238286120,7.58674522,85.89,85.85,7.58674522]
[1773238286294,4.14235986,85.898,85.85,7.58674522]
[1773238286493,7.58674522,85.89,85.85,11.75889017]
[1773238286714,4.14235986,85.898,85.86,7.58674522]
[1773238286895,4.14235986,85.898,85.851,4.17214495]
[1773238286896,7.58674522,85.89,85.852,11.64795228]
[1773238287213,7.58674522,85.89,85.852,15.82009723]
[1773238287706,11.64185012,85.897,85.861,4.17214495]
[1773238287891,11.64185012,85.897,85.852,11.64795228]
[1773238287892,4.14235986,85.896,85.852,11.64795228]
[1773238288209,4.82477569,85.911,85.852,11.64795228]
[1773238288210,7.58674522,85.91,85.871,4.17214495]
[1773238288411,11.63948403,85.915,85.88,7.58674522]
[1773238288710,11.63948403,85.915,85.871,4.17214495]
[1773238288711,7.58674522,85.91,85.871,4.17214495]
[1773238288914,11.64022395,85.909,85.873,4.17214495]
[1773238289415,11.64022395,85.909,85.872,11.64523942]
[1773238289416,7.58674522,85.93,85.891,4.17214495]
[1773238289593,7.58674522,85.93,85.9,7.58674522]
[1773238289795,11.63697299,85.933,85.901,4.17214495]
[1773238290312,11.63697299,85.933,85.89,7.58674522]
[1773238290313,7.58674522,85.93,85.89,7.58674522]
[1773238290511,7.58674522,85.93,85.891,4.17214495]
[1773238290988,11.63751469,85.929,85.893,4.17214495]
[1773238291189,2.8,85.936,85.901,4.17214495]
[1773238291407,11.63670215,85.935,85.901,4.17214495]
[1773238291793,7.58674522,85.93,85.892,11.64252782]
[1773238292208,7.58674522,85.93,85.893,4.17214495]
[1773238292406,11.63670215,85.935,85.901,4.17214495]
[1773238292814,2.8,85.936,85.901,4.17214495]
[1773238293116,2.8,85.936,85.875,46.57929937]
[1773238293117,2.8,85.96,85.921,4.17214495]
[1773238293300,7.58674522,85.96,85.921,4.17214495]
[1773238293501,11.63318248,85.961,85.93,7.58674522]
[1773238293904,11.63229469,85.968,85.931,4.17214495]
[1773238294214,11.63229469,85.968,85.911,40.7398354]
[1773238294215,11.63031437,85.983,85.941,4.17214495]
[1773238294419,14.42858305,85.995,85.961,4.17214495]
[1773238294716,43.50004069,85.995,85.961,4.17214495]
[1773238294902,14.42858305,85.995,85.961,4.17214495]
[1773238295098,14.42858305,85.995,85.962,11.63304716]
[1773238295313,11.62858305,85.995,85.962,11.63304716]
[1773238295819,22.01475896,86.0,85.971,4.17214495]
[1773238296398,14.42801374,86.0,85.971,4.17214495]
[1773238296626,2.8,86.0,85.98,7.58674522]
[1773238296919,0.2,86.02,85.991,4.17214495]
[1773238297097,0.2,86.02,85.993,4.17214495]
[1773238297718,11.62614953,86.013,85.993,4.17214495]
[1773238297925,11.62614953,86.013,85.98,11.75889017]
[1773238298112,11.62614953,86.013,85.981,11.6304765]
[1773238298303,7.58674522,86.01,85.98,4.17214495]
[1773238298502,11.62614953,86.013,85.981,11.6304765]
[1773238299197,11.62614953,86.013,85.982,4.17214495]
[1773238299401,18.36985324,86.014,85.982,4.17214495]
[1773238299803,6.74372952,86.014,85.991,4.25623234]
[1773238300522,6.74372952,86.014,85.981,11.6304765]
[1773238300523,11.62614953,86.013,85.981,11.6304765]
[1773238300704,6.74372952,86.014,85.991,4.25623234]
[1773238301299,2.8,86.028,86.0,7.58674522]
[1773238301300,11.62421693,86.028,86.0,7.58674522]
[1773238301625,2.8,86.035,85.992,11.62898874]
[1773238301626,4.2954465,86.029,85.992,11.62898874]
[1773238301807,7.58674522,86.02,85.99,11.62925921]
[1773238302007,2.8,86.035,85.99,11.62925921]
[1773238302008,4.2954465,86.066,86.011,4.25623234]
[1773238302206,11.61912507,86.065,86.03,7.58674522]
[1773238302519,4.2954465,86.049,86.01,7.58674522]
[1773238302722,7.58674522,86.04,86.004,4.25623234]
[1773238303021,7.58674522,86.02,85.991,4.25623234]
[1773238303230,7.58674522,86.02,85.94,46.54373726]
[1773238303231,7.58674522,86.0,85.965,4.25623234]
[1773238303432,11.62804218,85.999,85.965,4.25623234]
[1773238303605,4.2954465,85.998,85.953,4.25623234]
[1773238303921,40.69814764,85.999,85.961,4.25623234]
[1773238303922,2.8,85.997,85.961,4.25623234]
[1773238304305,7.58674522,85.99,85.961,4.25623234]
[1773238305117,7.58674522,85.98,85.951,4.25623234]
[1773238305319,7.58674522,85.99,85.951,4.25623234]
[1773238305516,7.58674522,85.98,85.952,11.63440059]
[1773238305724,4.2954465,85.989,85.942,11.63564761]
[1773238305943,7.58674522,85.96,85.929,4.25623234]
[1773238306220,4.2954465,85.979,85.94,7.58674522]
[1773238306400,2.8,85.988,85.941,4.25623234]
[1773238306601,2.8,85.988,85.94,7.58674522]
[1773238306602,11.62925921,85.99,85.951,4.25623234]
[1773238306810,48.28915247,85.99,85.951,4.25623234]
[1773238307013,7.58674522,85.98,85.951,4.25623234]
[1773238307249,48.28915247,85.99,85.951,4.25623234]
[1773238307618,19.21600443,85.99,85.953,4.25623234]
[1773238307828,19.21600443,85.99,85.96,7.58674522]
[1773238308010,11.62863487,85.995,85.961,4.25623234]
[1773238308210,7.58674522,86.02,85.981,4.25623234]
[1773238308516,7.58674522,86.06,86.011,4.25623234]
[1773238308719,7.58674522,86.06,85.989,3.69383402]
[1773238308720,11.61912507,86.065,86.03,7.58674522]
[1773238309024,11.61912507,86.065,86.031,4.25623234]
[1773238309623,9.96902086,86.069,86.042,4.25623234]
[1773238310028,7.58674522,86.06,86.03,4.42738207]
[1773238310225,7.58674522,86.06,85.995,46.51412745]
[1773238310226,7.58674522,86.05,86.01,12.01412729]
[1773238310415,7.58674522,86.05,86.0,12.01412729]
[1773238310416,7.58674522,86.04,86.0,12.01412729]
[1773238310608,2.8,86.039,86.0,12.01412729]
[1773238310807,7.58674522,86.03,86.0,4.42738207]
[1773238311310,7.27529521,86.039,86.0,12.01412729]
[1773238311505,7.58674522,86.04,86.001,4.42738207]
[1773238311704,11.62128554,86.049,86.011,4.42738207]
[1773238311919,7.58674522,86.04,86.011,4.42738207]
[1773238312328,40.6744994,86.049,86.011,4.42738207]
[1773238312525,11.62128554,86.049,86.011,4.42738207]
[1773238312705,40.6744994,86.049,86.011,4.42738207]
[1773238313308,11.62128554,86.049,86.02,7.58674522]
[1773238313529,11.62004927,86.059,86.021,4.42738207]
[1773238313827,11.62004927,86.059,86.031,4.42738207]
[1773238314722,11.62004927,86.059,86.011,4.42738207]
[1773238314723,12.06204043,86.05,86.011,4.42738207]
[1773238314928,40.66988717,86.059,86.02,7.58674522]
[1773238315226,11.62004927,86.059,86.021,4.42738207]
[1773238315528,40.66988717,86.059,86.021,4.42738207]
[1773238315715,7.58674522,86.06,86.03,7.58674522]
[1773238315920,11.61936468,86.064,86.031,4.42738207]
[1773238316121,7.58674522,86.06,86.031,4.42738207]
[1773238316331,11.61936468,86.064,86.031,4.42738207]
[1773238316531,18.78766331,86.069,86.041,4.42738207]
[1773238316833,18.78766331,86.069,86.03,12.01412729]
[1773238317020,18.78766331,86.069,86.031,4.42738207]
[1773238317423,18.78766331,86.069,86.04,12.01412729]
[1773238317941,18.78766331,86.069,86.041,11.62236608]
[1773238318111,7.16902086,86.069,86.05,12.01412729]
[1773238318437,7.16902086,86.069,86.051,4.42738207]
[1773238318618,7.16902086,86.069,86.041,40.67828128]
[1773238318934,11.61872008,86.068,86.041,11.62236608]
[1773238319124,11.61872008,86.068,86.034,4.42738207]
[1773238319525,4.47529521,86.067,86.03,7.58674522]
[1773238319720,4.47529521,86.067,86.001,2.72]
[1773238319721,7.16902086,86.069,86.05,11.99191338]
[1773238319935,7.16902086,86.069,86.051,16.04839751]
[1773238320144,7.16902086,86.069,86.051,4.42738207]
[1773238320430,16.09401529,86.068,86.03,7.56453131]
[1773238320642,16.09401529,86.068,86.028,4.42738207]
[1773238320643,7.16902086,86.069,86.041,4.42738207]
[1773238320820,7.16902086,86.069,86.032,16.05088273]
[1773238320821,11.61872008,86.068,86.032,16.05088273]
[1773238321021,7.16902086,86.069,86.041,4.42738207]
[1773238321524,11.61872008,86.068,86.041,4.42738207]
[1773238321836,11.61872008,86.068,86.042,11.622231]
[1773238322041,4.47529521,86.049,86.01,7.56453131]
[1773238322255,7.27529521,86.049,86.01,11.62655505]
[1773238322429,7.56453131,86.06,86.021,4.42738207]
[1773238322632,2.8,86.059,86.021,4.42738207]
[1773238323135,7.56453131,86.04,86.01,11.62655505]
[1773238323522,4.47529521,86.049,86.011,4.42738207]
[1773238323724,7.56453131,86.04,86.011,4.42738207]
[1773238323925,11.62263624,86.039,86.012,11.6262847]
[1773238324316,11.62263624,86.039,86.011,4.42738207]
[1773238324518,2.64854225,86.014,85.941,4.42738207]
[1773238324748,7.56453131,85.96,85.941,4.42738207]
[1773238324937,7.56453131,85.95,85.899,4.42738207]
[1773238325144,7.56453131,85.93,85.899,4.42738207]
[1773238325442,7.56453131,85.93,85.898,40.74600106]
[1773238325443,7.56453131,85.96,85.911,4.42738207]
[1773238325954,7.56453131,85.95,85.913,4.42738207]
[1773238326444,7.56453131,85.95,85.916,4.42738207]
[1773238326956,7.56453131,85.93,85.875,4.42738207]
[1773238327132,7.56453131,85.92,85.876,4.42738207]
[1773238327324,7.56453131,85.92,85.879,4.42738207]
[1773238328144,5.44854225,85.951,85.884,4.42738207]
[1773238328145,7.56453131,85.93,85.884,4.42738207]
[1773238328345,3.96453131,85.93,85.881,4.42738207]
[1773238328647,7.56453131,85.94,85.89,7.56453131]
[1773238328827,2.8,85.951,85.89,7.56453131]
[1773238328828,7.56453131,85.95,85.894,4.42738207]
[1773238329026,7.56453131,85.93,85.898,4.42738207]
[1773238329451,19.19792744,85.96,85.88,87.33115975]
[1773238329452,7.56453131,85.92,85.884,0.92470479]
[1773238329619,4.47529521,85.929,85.884,0.92470479]
[1773238329620,7.56453131,85.91,85.884,0.92470479]
[1773238329823,2.8,85.952,85.872,11.64523942]
[1773238329824,7.56453131,85.89,85.872,11.64523942]
[1773238330023,4.47529521,85.914,85.838,46.59901739]
[1773238330024,4.47529521,85.896,85.853,29.11929426]
[1773238330334,4.47529521,85.893,85.853,29.11929426]
[1773238330841,7.56453131,85.87,85.846,11.64876639]
[1773238331043,7.56453131,85.86,85.846,11.64876639]
[1773238331342,7.56453131,85.86,85.827,11.65134514]
[1773238331540,7.56453131,85.85,85.827,11.65134514]
[1773238332131,7.56453131,85.87,85.83,11.6509379]
[1773238332443,4.47529521,85.874,85.83,40.77828265]
[1773238332642,7.56453131,85.86,85.83,40.77828265]
[1773238332947,7.56453131,85.87,85.83,40.77828265]
[1773238333248,7.56453131,85.86,85.83,40.77828265]
[1773238333425,7.56453131,85.87,85.83,145.63672375]